fUST/lending_fUST_20240521
["ID","MTS","AMOUNT","RATE_DAILY","PERIOD"]
[327623322,1716256252876,-502.43238252,0.00043835,40]
[327623323,1716256252886,-500.0,0.00043835,40]
[327623324,1716256252896,-679.77,0.00043835,40]
[327623325,1716256252906,-500.0,0.00043835,40]
[327623326,1716256252914,-961.186848,0.00043835,7]
[327623327,1716256252923,-961.18684,0.00043835,7]
[327623328,1716256252933,-500.0,0.00043835,40]
[327623329,1716256252942,-500.0,0.00043835,40]
[327623330,1716256252951,-500.0,0.00043835,40]
[327623331,1716256252960,-500.0,0.00043835,40]
[327623332,1716256252970,-3098.74,0.00043835,40]
[327623333,1716256252980,-573.79,0.00043835,40]
[327623334,1716256252989,-948.960399,0.00043835,7]
[327623335,1716256252998,-948.960399,0.00043835,7]
[327623336,1716256253007,-500.0,0.00043835,40]
[327623337,1716256253017,-500.0,0.00043835,40]
[327623338,1716256253026,-948.960399,0.00043835,7]
[327623339,1716256253035,-740.22,0.00043835,40]
[327623340,1716256253045,-948.96039256,0.00043835,7]
[327623341,1716256253054,-500.0,0.00043835,40]
[327623342,1716256253164,-946.03,0.00043835,40]
[327623343,1716256253174,-520.3,0.00043835,40]
[327623344,1716256253184,-500.0,0.00043835,40]
[327623345,1716256253193,-683.12,0.00043835,40]
[327623346,1716256253203,-1857.09,0.00043835,40]
[327623347,1716256253212,-815.0,0.00043835,40]
[327623348,1716256253221,-500.0,0.00043835,40]
[327623349,1716256253232,-504.58,0.00043835,40]
[327623350,1716256253241,-500.0,0.00043835,40]
[327623351,1716256253251,-725.35,0.00043835,40]
[327623352,1716256253260,-758.0,0.00043835,40]
[327623353,1716256253269,-1095.12,0.00043835,40]
[327623354,1716256253279,-10687.91,0.00043835,40]
[327623355,1716256253289,-419.9043578,0.00043835,40]
[327623356,1716256253299,-501.1869088,0.00043835,40]
[327623357,1716256253308,-638.48605896,0.00043835,40]
[327623358,1716256253318,-1953.62,0.00043835,40]
[327623359,1716256253328,-3071.22,0.00043835,7]
[327623360,1716256253338,-500.0,0.00043835,40]
[327623361,1716256253348,-621.32,0.00043835,40]
[327623362,1716256253357,-501.43090304,0.00043835,40]
[327623363,1716256253367,-871.95,0.00043835,7]
[327623364,1716256253377,-196.74680561,0.00043835,40]
[327623365,1716256253387,-500.0,0.00043835,40]
[327623366,1716256253396,-711.26,0.00043835,40]
[327623367,1716256253406,-500.0,0.00043835,40]
[327623368,1716256253415,-779.29,0.00043835,40]
[327623369,1716256253424,-500.0,0.00043835,40]
[327623370,1716256253433,-500.0,0.00043835,40]
[327623371,1716256253443,-500.0,0.00043835,40]
[327623372,1716256253453,-500.0,0.00043835,40]
[327623373,1716256253462,-702.98,0.00043835,40]
[327623374,1716256253472,-746.5,0.00043835,40]
[327623375,1716256253481,-500.0,0.00043835,40]
[327623376,1716256253491,-494.38915818,0.00043835,40]
[327623377,1716256253500,-4569.8,0.00043835,40]
[327623378,1716256253516,-501.20224384,0.00043835,40]
[327623379,1716256253526,-500.0,0.00043835,40]
[327623380,1716256253535,-506.65657166,0.00043835,30]
[327623381,1716256253545,-502.77820957,0.00043835,40]
[327623382,1716256253555,-500.0,0.00043835,40]
[327623383,1716256253566,-190.406811,0.00043835,7]
[327623384,1716256253575,-558.71,0.00043835,40]
[327623385,1716256253585,-947.59707,0.00043835,7]
[327623386,1716256253596,-500.0,0.00043835,40]
[327623387,1716256253605,-947.59707,0.00043835,7]
[327623388,1716256253614,-500.61476626,0.00043835,40]
[327623389,1716256253624,-655.44,0.00043835,40]
[327623390,1716256253634,-979.85,0.00043835,40]
[327623391,1716256253643,-616.35,0.00043835,40]
[327623392,1716256253653,-947.59707,0.00043835,7]
[327623393,1716256253663,-947.597073,0.00043835,7]
[327623394,1716256253672,-500.0,0.00043835,40]
[327623395,1716256253681,-500.0,0.00043835,40]
[327623396,1716256253691,-500.0,0.00043835,40]
[327623397,1716256253701,-514.76890744,0.00043835,40]
[327623398,1716256253711,-860.47,0.00043835,40]
[327623399,1716256253720,-903.307548,0.00043835,7]
[327623400,1716256253733,-903.307548,0.00043835,7]
[327623401,1716256253742,-500.0,0.00043835,40]
[327623402,1716256253751,-701.3,0.00043835,40]
[327623403,1716256253759,-500.0,0.00043835,40]
[327623404,1716256253769,-621.4,0.00043835,40]
[327623405,1716256253782,-903.307548,0.00043835,7]
[327623406,1716256253792,-903.307554,0.00043835,7]
[327623407,1716256253800,-500.0,0.00043835,40]
[327623408,1716256253809,-500.0,0.00043835,40]
[327623409,1716256253820,-5043.45,0.00043835,40]
[327623410,1716256253833,-500.0,0.00043835,40]
[327623411,1716256253842,-502.17473255,0.00043835,40]
[327623412,1716256253851,-500.0,0.00043835,40]
[327623413,1716256253860,-500.0,0.00043835,40]
[327623414,1716256253869,-500.0,0.00043835,40]
[327623415,1716256253879,-680.66,0.00043835,40]
[327623416,1716256253889,-905.75,0.00043835,40]
[327623417,1716256253898,-500.0,0.00043835,40]
[327623418,1716256253907,-668.38,0.00043835,40]
[327623419,1716256253917,-500.0,0.00043835,40]
[327623420,1716256253926,-500.0,0.00043835,40]
[327623421,1716256253935,-500.0,0.00043835,40]
[327623422,1716256253945,-151.0,0.00043835,7]
[327623423,1716256253954,-151.0,0.00043835,7]
[327623424,1716256253964,-4536.56,0.00043835,40]
[327623425,1716256253973,-960.25,0.00043835,40]
[327623426,1716256253984,-500.0,0.00043835,40]
[327623427,1716256253994,-634.52,0.00043835,40]
[327623428,1716256254003,-530.04,0.00043835,40]
[327623429,1716256254013,-500.0,0.00043835,40]
[327623430,1716256254023,-500.0,0.00043835,40]
[327623431,1716256254032,-500.0,0.00043835,40]
[327623432,1716256254042,-644.45431104,0.00043835,40]
[327623433,1716256254051,-500.0,0.00043835,40]
[327623434,1716256254062,-1213.79,0.00043835,40]
[327623435,1716256254072,-200.05487389,0.00043835,40]
[327623436,1716256254082,-815.37,0.00043835,40]
[327623437,1716256254092,-194.918389,0.00043835,7]
[327623438,1716256254101,-697.34,0.00043835,40]
[327623439,1716256254111,-194.918389,0.00043835,7]
[327623440,1716256254121,-587.31256885,0.00043835,40]
[327623441,1716256254131,-500.0,0.00043835,40]
[327623442,1716256254141,-500.0,0.00043835,40]
[327623443,1716256254151,-704.21,0.00043835,40]
[327623444,1716256254160,-500.0,0.00043835,20]
[327623445,1716256254170,-194.918389,0.00043835,7]
[327623446,1716256254180,-543.69,0.00043835,40]
[327623447,1716256254190,-194.918385,0.00043835,7]
[327623448,1716256254200,-500.0,0.00043835,40]
[327623449,1716256254210,-500.0,0.00043835,40]
[327623450,1716256254220,-1357.0,0.00043835,40]
[327623451,1716256254231,-300.0,0.00043835,7]
[327623452,1716256254240,-4443.84,0.00043835,21]
[327623453,1716256254250,-590.21,0.00043835,40]
[327623454,1716256254259,-500.0,0.00043835,40]
[327623455,1716256254269,-500.0,0.00043835,40]
[327623456,1716256254279,-500.0,0.00043835,40]
[327623457,1716256254289,-503.73257507,0.00043835,40]
[327623458,1716256254298,-568.3,0.00043835,40]
[327623459,1716256254309,-500.0,0.00043835,40]
[327623460,1716256254318,-500.0,0.00043835,40]
[327623461,1716256254328,-603.81,0.00043835,40]
[327623462,1716256254339,-854.22,0.00043835,40]
[327623463,1716256254348,-1298.13,0.00043835,40]
[327623464,1716256254357,-686.9,0.00043835,40]
[327623465,1716256254367,-500.0,0.00043835,40]
[327623466,1716256254377,-500.0,0.00043835,40]
[327623467,1716256254387,-1283.07,0.00043835,40]
[327623468,1716256254397,-500.0,0.00043835,40]
[327623469,1716256254407,-1928.09,0.00043835,40]
[327623470,1716256254417,-500.98982194,0.00043835,40]
[327623471,1716256254427,-509.67318736,0.00043835,40]
[327623472,1716256254437,-1521.93,0.00043835,40]
[327623473,1716256254446,-500.0,0.00043835,40]
[327623474,1716256254456,-500.0,0.00043835,40]
[327623475,1716256254465,-500.0,0.00043835,40]
[327623476,1716256254475,-500.0,0.00043835,40]
[327623477,1716256254487,-500.0,0.00043835,40]
[327623478,1716256254496,-500.0,0.00043835,40]
[327623479,1716256254506,-500.0,0.00043835,40]
[327623480,1716256254516,-3265.34,0.00043835,40]
[327623481,1716256254530,-500.0,0.00043835,40]
[327623482,1716256254539,-962.63,0.00043835,40]
[327623483,1716256254549,-500.0,0.00043835,40]
[327623484,1716256254560,-500.0,0.00043835,40]
[327623485,1716256254570,-500.0,0.00043835,40]
[327623486,1716256254579,-19738.08,0.00043835,40]
[327623487,1716256254590,-1000.0,0.00043835,40]
[327623488,1716256254600,-500.0,0.00043835,40]
[327623489,1716256254610,-500.0,0.00043835,40]
[327623490,1716256254620,-500.0,0.00043835,30]
[327623491,1716256254630,-500.0,0.00043835,40]
[327623492,1716256254640,-711.64,0.00043835,40]
[327623493,1716256254650,-500.0,0.00043835,40]
[327623494,1716256254660,-2017.3,0.00043835,40]
[327623495,1716256254669,-1090.23,0.00043835,40]
[327623496,1716256254679,-1090.8,0.00043835,40]
[327623497,1716256254688,-500.0,0.00043835,40]
[327623498,1716256254698,-394.95697471,0.00043835,40]
[327623499,1716256254708,-774.07,0.00043835,40]
[327623500,1716256254717,-402.76134223,0.00043835,40]
[327623501,1716256254727,-500.0,0.00043835,40]
[327623502,1716256254737,-500.0,0.00043835,40]
[327623503,1716256254746,-2075.97,0.00043835,40]
[327623504,1716256254756,-500.0,0.00043835,40]
[327623505,1716256254765,-500.0,0.00043835,40]
[327623506,1716256254775,-695.68,0.00043835,40]
[327623507,1716256254784,-151.0,0.00043835,7]
[327623508,1716256254794,-151.0,0.00043835,7]
[327623509,1716256254803,-846.21,0.00043835,40]
[327623510,1716256254813,-500.0,0.00043835,40]
[327623511,1716256254823,-500.0,0.00043835,40]
[327623512,1716256254832,-210.852563,0.00043835,7]
[327623513,1716256254842,-500.0,0.00043835,40]
[327623514,1716256254851,-500.0,0.00043835,40]
[327623515,1716256254861,-500.0,0.00043835,40]
[327623516,1716256254870,-500.0,0.00043835,40]
[327623517,1716256254880,-500.0,0.00043835,40]
[327623518,1716256254889,-400.0,0.00043836,30]
[327623519,1716256254899,-313.09089598,0.00044,40]
[327623520,1716256254909,-347.30588435,0.00044,120]
[327623521,1716256254919,-848.77,0.00044,32]
[327623522,1716256254929,-451.18,0.00044,120]
[327623523,1716256254939,-157.38820238,0.00044012,30]
[327623524,1716256254949,-500.0,0.00044109,41]
[327623525,1716256254958,-500.0,0.00044109,41]
[327623526,1716256254968,-500.0,0.00044109,41]
[327623527,1716256254977,-500.0,0.00044109,41]
[327623528,1716256254988,-500.0,0.00044109,41]
[327623529,1716256254998,-500.0,0.00044109,41]
[327623530,1716256255007,-767.25,0.00044109,41]
[327623531,1716256255017,-500.0,0.00044109,41]
[327623532,1716256255026,-500.0,0.00044109,41]
[327623533,1716256255036,-837.43,0.00044109,41]
[327623534,1716256255046,-502.44156159,0.00044109,41]
[327623535,1716256255055,-650.81,0.00044109,41]
[327623536,1716256255064,-500.0,0.00044109,41]
[327623537,1716256255075,-500.0,0.00044109,41]
[327623538,1716256255084,-500.0,0.00044109,41]
[327623539,1716256255094,-597.94,0.00044109,41]
[327623540,1716256255201,-500.0,0.00044109,41]
[327623541,1716256255212,-500.0,0.00044109,41]
[327623542,1716256255222,-500.0,0.00044109,41]
[327623543,1716256255232,-500.0,0.00044109,41]
[327623544,1716256255242,-286.90113539,0.00044109,41]
[327623545,1716256255252,-500.0,0.00044109,41]
[327623546,1716256255261,-500.0,0.00044109,41]
[327623547,1716256255271,-500.0,0.00044109,41]
[327623548,1716256255280,-500.0,0.00044109,41]
[327623549,1716256255289,-501.90757875,0.00044109,41]
[327623550,1716256255298,-500.0,0.00044109,41]
[327623551,1716256255308,-500.0,0.00044109,41]
[327623552,1716256255317,-500.0,0.00044109,41]
[327623553,1716256255327,-500.0,0.00044109,41]
[327623554,1716256255336,-500.0,0.00044109,41]
[327623555,1716256255346,-500.0,0.00044109,41]
[327623556,1716256255356,-500.0,0.00044109,41]
[327623557,1716256255366,-500.0,0.00044109,41]
[327623558,1716256255375,-500.0,0.00044109,41]
[327623559,1716256255385,-644.4990646,0.00044109,41]
[327623560,1716256255395,-559.54,0.00044109,41]
[327623561,1716256255405,-622.99,0.00044109,41]
[327623562,1716256255414,-500.0,0.00044109,41]
[327623563,1716256255423,-500.0,0.00044109,41]
[327623564,1716256255433,-500.0,0.00044109,41]
[327623565,1716256255443,-500.0,0.00044109,41]
[327623566,1716256255453,-500.0,0.00044109,41]
[327623567,1716256255463,-371.26846858,0.00044109,41]
[327623568,1716256255472,-500.0,0.00044109,41]
[327623569,1716256255481,-500.0,0.00044109,41]
[327623570,1716256255491,-500.0,0.00044109,41]
[327623571,1716256255501,-500.0,0.00044109,41]
[327623572,1716256255515,-500.0,0.00044109,41]
[327623573,1716256255525,-500.0,0.00044109,41]
[327623574,1716256255534,-789.44,0.00044109,41]
[327623575,1716256255544,-540.7,0.00044109,41]
[327623576,1716256255555,-317.63764685,0.00044109,41]
[327623577,1716256255565,-500.0,0.00044109,41]
[327623578,1716256255575,-596.6,0.00044109,41]
[327623579,1716256255584,-500.0,0.00044109,41]
[327623580,1716256255596,-500.0,0.00044109,41]
[327623581,1716256255605,-702.31,0.00044109,41]
[327623582,1716256255616,-500.0,0.00044109,41]
[327623583,1716256255625,-500.0,0.00044109,41]
[327623584,1716256255636,-985.17,0.00044109,41]
[327623585,1716256255646,-1198.71,0.00044109,41]
[327623586,1716256255656,-500.0,0.00044109,2]
[327623587,1716256255666,-500.0,0.00044109,41]
[327623588,1716256255675,-500.0,0.00044109,41]
[327623589,1716256255686,-500.0,0.00044109,41]
[327623590,1716256255695,-500.0,0.00044109,41]
[327623591,1716256255705,-889.02,0.00044109,41]
[327623592,1716256255714,-698.24,0.00044109,41]
[327623593,1716256255724,-500.0,0.00044109,41]
[327623594,1716256255734,-676.37,0.00044109,41]
[327623595,1716256255744,-500.0,0.00044109,41]
[327623596,1716256255754,-500.0,0.00044109,41]
[327623597,1716256255764,-724.9,0.00044109,41]
[327623598,1716256255774,-803.48,0.00044109,41]
[327623599,1716256255784,-500.0,0.00044109,41]
[327623600,1716256255793,-500.0,0.00044109,41]
[327623601,1716256255802,-500.0,0.00044109,41]
[327623602,1716256255813,-500.0,0.00044109,41]
[327623603,1716256255822,-500.0,0.00044109,41]
[327623604,1716256255832,-500.0,0.00044109,41]
[327623605,1716256255841,-820.9,0.00044109,41]
[327623606,1716256255851,-500.0,0.00044109,41]
[327623607,1716256255861,-655.92,0.00044109,41]
[327623608,1716256255870,-503.48263211,0.00044109,41]
[327623609,1716256255880,-500.0,0.00044109,41]
[327623610,1716256255889,-500.0,0.00044109,41]
[327623611,1716256255899,-500.0,0.00044109,41]
[327623612,1716256255909,-500.0,0.00044109,41]
[327623613,1716256255919,-671.89,0.00044109,41]
[327623614,1716256255928,-500.0,0.00044109,41]
[327623615,1716256255938,-520.46,0.00044109,41]
[327623616,1716256255947,-500.0,0.00044109,41]
[327623617,1716256255956,-500.0,0.00044109,41]
[327623618,1716256255967,-723.43,0.00044109,41]
[327623619,1716256255977,-500.0,0.00044109,41]
[327623620,1716256255987,-500.0,0.00044109,41]
[327623621,1716256255997,-500.0,0.00044109,41]
[327623622,1716256256006,-949.87,0.00044109,41]
[327623623,1716256256016,-684.86,0.00044109,41]
[327623624,1716256256025,-778.84,0.00044109,41]
[327623625,1716256256034,-723.49,0.00044109,41]
[327623626,1716256256044,-797.35,0.00044109,41]
[327623627,1716256256053,-500.0,0.00044109,41]
[327623628,1716256256063,-861.17,0.00044109,41]
[327623629,1716256256072,-994.81,0.00044109,41]
[327623630,1716256256081,-500.0,0.00044109,41]
[327623631,1716256256091,-736.19,0.00044109,41]
[327623632,1716256256100,-500.0,0.00044109,41]
[327623633,1716256256110,-500.0,0.00044109,41]
[327623634,1716256256120,-550.36312736,0.00044109,41]
[327623635,1716256256129,-500.0,0.00044109,41]
[327623636,1716256256138,-585.89,0.00044109,41]
[327623637,1716256256148,-798.18,0.00044109,41]
[327623638,1716256256157,-523.8412918,0.00044109,41]
[327623639,1716256256167,-706.53,0.00044109,41]
[327623640,1716256256176,-500.0,0.00044109,41]
[327623641,1716256256186,-500.0,0.00044109,41]
[327623642,1716256256195,-500.0,0.00044109,41]
[327623643,1716256256205,-500.0,0.00044109,41]
[327623644,1716256256215,-526.95,0.00044109,41]
[327623645,1716256256224,-504.03421082,0.00044109,41]
[327623646,1716256256235,-500.0,0.00044109,41]
[327623647,1716256256245,-500.0,0.00044109,41]
[327623648,1716256256254,-500.0,0.00044109,41]
[327623649,1716256256264,-761.38,0.00044109,41]
[327623650,1716256256273,-699.03,0.00044109,41]
[327623651,1716256256283,-500.0,0.00044109,41]
[327623652,1716256256292,-500.0,0.00044109,41]
[327623653,1716256256302,-668.01,0.00044109,41]
[327623654,1716256256312,-983.04,0.00044109,41]
[327623655,1716256256323,-500.0,0.00044109,41]
[327623656,1716256256334,-500.0,0.00044109,41]
[327623657,1716256256344,-500.0,0.00044109,41]
[327623658,1716256256354,-500.0,0.00044109,41]
[327623659,1716256256364,-640.06,0.00044109,41]
[327623660,1716256256374,-500.0,0.00044109,41]
[327623661,1716256256384,-501.83073981,0.00044109,41]
[327623662,1716256256394,-557.05,0.00044109,41]
[327623663,1716256256404,-1324.9,0.00044109,41]
[327623664,1716256256415,-634.01,0.00044109,41]
[327623665,1716256256425,-512.82,0.00044109,41]
[327623666,1716256256435,-655.25,0.00044109,41]
[327623667,1716256256445,-500.0,0.00044109,41]
[327623668,1716256256454,-501.84006185,0.00044109,41]
[327623669,1716256256464,-500.0,0.00044109,41]
[327623670,1716256256475,-500.0,0.00044109,41]
[327623671,1716256256490,-500.0,0.00044109,41]
[327623672,1716256256499,-500.0,0.00044109,41]
[327623673,1716256256509,-500.0,0.00044109,41]
[327623674,1716256256524,-820.76,0.00044109,41]
[327623675,1716256256534,-500.0,0.00044109,41]
[327623676,1716256256545,-500.0,0.00044109,41]
[327623677,1716256256556,-500.0,0.00044109,41]
[327623678,1716256256566,-500.0,0.00044109,41]
[327623679,1716256256576,-500.0,0.00044109,41]
[327623680,1716256256586,-500.0,0.00044109,41]
[327623681,1716256256598,-500.0,0.00044109,41]
[327623682,1716256256608,-500.0,0.00044109,41]
[327623683,1716256256618,-1050.19,0.00044109,41]
[327623684,1716256256628,-500.0,0.00044109,41]
[327623685,1716256256638,-500.0,0.00044109,41]
[327623686,1716256256648,-532.72156397,0.00044109,41]
[327623687,1716256256657,-500.0,0.00044109,41]
[327623688,1716256256666,-500.0,0.00044109,41]
[327623689,1716256256676,-500.0,0.00044109,41]
[327623690,1716256256685,-578.19,0.00044109,41]
[327623691,1716256256694,-500.0,0.00044109,41]
[327623692,1716256256704,-501.07201233,0.00044109,41]
[327623693,1716256256713,-500.0,0.00044109,14]
[327623694,1716256256723,-500.0,0.00044109,41]
[327623695,1716256256736,-500.0,0.00044109,2]
[327623696,1716256256746,-500.0,0.00044109,41]
[327623697,1716256256755,-868.84,0.00044109,41]
[327623698,1716256256764,-560.94,0.00044109,41]
[327623699,1716256256774,-500.0,0.00044109,41]
[327623700,1716256256784,-500.0,0.00044109,41]
[327623701,1716256256793,-3015.8,0.00044109,41]
[327623702,1716256256803,-500.0,0.00044109,41]
[327623703,1716256256812,-504.16872652,0.00044109,41]
[327623704,1716256256822,-500.0,0.00044109,41]
[327623705,1716256256831,-500.0,0.00044109,120]
[327623706,1716256256840,-742.5,0.00044109,41]
[327623707,1716256256850,-1312.06,0.00044109,41]
[327623708,1716256256859,-502.66588242,0.00044109,41]
[327623709,1716256256869,-500.0,0.00044109,41]
[327623710,1716256256878,-672.9,0.00044109,41]
[327623711,1716256256888,-500.0,0.00044109,41]
[327623712,1716256256898,-500.0,0.00044109,41]
[327623713,1716256256907,-500.0,0.00044109,41]
[327623714,1716256256916,-1721.54,0.00044109,41]
[327623715,1716256256926,-537.17,0.00044109,41]
[327623716,1716256256935,-1288.56,0.00044109,41]
[327623717,1716256256945,-500.0,0.00044109,41]
[327623718,1716256256954,-384.79314048,0.00044109,41]
[327623719,1716256256964,-2966.04,0.00044109,41]
[327623720,1716256256973,-500.0,0.00044109,41]
[327623721,1716256256984,-800.58,0.00044109,41]
[327623722,1716256256994,-519.32,0.00044109,41]
[327623723,1716256257092,-1101.76,0.00044109,41]
[327623724,1716256257102,-571.16,0.00044109,41]
[327623725,1716256257112,-3000.0,0.00044109,30]
[327623726,1716256257121,-500.0,0.00044109,41]
[327623727,1716256257131,-500.0,0.00044109,41]
[327623728,1716256257140,-502.87854424,0.00044109,41]
[327623729,1716256257150,-496.52159758,0.00044109,41]
[327623730,1716256257159,-679.77,0.00044109,41]
[327623731,1716256257169,-500.0,0.00044109,41]
[327623732,1716256257179,-500.0,0.00044109,41]
[327623733,1716256257188,-500.0,0.00044109,41]
[327623734,1716256257198,-500.0,0.00044109,41]
[327623735,1716256257207,-500.0,0.00044109,41]
[327623736,1716256257217,-3098.74,0.00044109,41]
[327623737,1716256257226,-573.79,0.00044109,41]
[327623738,1716256257241,-500.0,0.00044109,41]
[327623739,1716256257250,-500.0,0.00044109,41]
[327623740,1716256257259,-740.22,0.00044109,41]
[327623741,1716256257268,-500.0,0.00044109,41]
[327623742,1716256257278,-946.03,0.00044109,41]
[327623743,1716256257287,-520.3,0.00044109,41]
[327623744,1716256257296,-500.0,0.00044109,41]
[327623745,1716256257305,-683.12,0.00044109,41]
[327623746,1716256257314,-1857.09,0.00044109,41]
[327623747,1716256257324,-815.0,0.00044109,41]
[327623748,1716256257333,-500.0,0.00044109,41]
[327623749,1716256257343,-504.58,0.00044109,41]
[327623750,1716256257352,-500.0,0.00044109,41]
[327623751,1716256257362,-725.35,0.00044109,41]
[327623752,1716256257371,-758.0,0.00044109,41]
[327623753,1716256257381,-1095.12,0.00044109,41]
[327623754,1716256257391,-10687.91,0.00044109,41]
[327623755,1716256257400,-1953.62,0.00044109,41]
[327623756,1716256257410,-3071.22,0.00044109,7]
[327623757,1716256257420,-500.0,0.00044109,41]
[327623758,1716256257430,-621.32,0.00044109,41]
[327623759,1716256257440,-871.95,0.00044109,7]
[327623760,1716256257449,-500.0,0.00044109,41]
[327623761,1716256257458,-711.26,0.00044109,41]
[327623762,1716256257467,-500.0,0.00044109,41]
[327623763,1716256257477,-779.29,0.00044109,41]
[327623764,1716256257488,-500.0,0.00044109,41]
[327623765,1716256257498,-500.0,0.00044109,41]
[327623766,1716256257508,-500.0,0.00044109,41]
[327623767,1716256257521,-500.0,0.00044109,41]
[327623768,1716256257530,-702.98,0.00044109,41]
[327623769,1716256257539,-746.5,0.00044109,41]
[327623770,1716256257549,-500.0,0.00044109,41]
[327623771,1716256257559,-4569.8,0.00044109,41]
[327623772,1716256257568,-500.0,0.00044109,41]
[327623773,1716256257577,-580.8198918,0.00044109,41]
[327623774,1716256257589,-558.71,0.00044109,41]
[327623775,1716256257598,-500.0,0.00044109,41]
[327623776,1716256257608,-655.44,0.00044109,41]
[327623777,1716256257617,-979.85,0.00044109,41]
[327623778,1716256257627,-616.35,0.00044109,41]
[327623779,1716256257636,-500.0,0.00044109,41]
[327623780,1716256257645,-500.0,0.00044109,41]
[327623781,1716256257655,-500.0,0.00044109,41]
[327623782,1716256257664,-860.47,0.00044109,41]
[327623783,1716256257674,-500.0,0.00044109,41]
[327623784,1716256257684,-701.3,0.00044109,41]
[327623785,1716256257693,-500.0,0.00044109,41]
[327623786,1716256257703,-621.4,0.00044109,41]
[327623787,1716256257713,-500.0,0.00044109,41]
[327623788,1716256257722,-5043.45,0.00044109,41]
[327623789,1716256257733,-500.0,0.00044109,41]
[327623790,1716256257742,-502.99802688,0.00044109,41]
[327623791,1716256257751,-500.0,0.00044109,41]
[327623792,1716256257761,-360.66514482,0.00044109,41]
[327623793,1716256257770,-500.0,0.00044109,41]
[327623794,1716256257779,-680.66,0.00044109,41]
[327623795,1716256257788,-905.75,0.00044109,41]
[327623796,1716256257798,-500.0,0.00044109,41]
[327623797,1716256257807,-668.38,0.00044109,41]
[327623798,1716256257817,-534.98091122,0.00044109,41]
[327623799,1716256257826,-500.0,0.00044109,41]
[327623800,1716256257836,-500.0,0.00044109,41]
[327623801,1716256257845,-4536.56,0.00044109,41]
[327623802,1716256257855,-960.25,0.00044109,41]
[327623803,1716256257865,-500.0,0.00044109,41]
[327623804,1716256257874,-634.52,0.00044109,41]
[327623805,1716256257883,-530.04,0.00044109,41]
[327623806,1716256257893,-500.0,0.00044109,41]
[327623807,1716256257902,-500.0,0.00044109,41]
[327623808,1716256257911,-500.0,0.00044109,41]
[327623809,1716256257920,-500.0,0.00044109,41]
[327623810,1716256257930,-1213.79,0.00044109,41]
[327623811,1716256257939,-815.37,0.00044109,41]
[327623812,1716256257949,-697.34,0.00044109,41]
[327623813,1716256257958,-500.0,0.00044109,41]
[327623814,1716256257967,-500.0,0.00044109,41]
[327623815,1716256257977,-704.21,0.00044109,41]
[327623816,1716256257989,-500.0,0.00044109,20]
[327623817,1716256257998,-543.69,0.00044109,41]
[327623818,1716256258008,-500.0,0.00044109,41]
[327623819,1716256258017,-500.0,0.00044109,41]
[327623820,1716256258026,-1357.0,0.00044109,41]
[327623821,1716256258036,-300.0,0.00044109,7]